bitfinex/quotes_ETHUSD_20240702
["timestamp","ask_amount","ask_price","bid_price","bid_amount"]
[1719902548805,5.22926,3452.4,3451.6,2.89717]
[1719902549104,5.22926,3452.4,3452.1,0.08392293]
[1719902549262,0.50161554,3452.3,3451.7,0.822]
[1719902549459,5.22926,3452.4,3452.2,0.08391331]
[1719902549687,0.50161618,3452.3,3451.7,0.822]
[1719902549887,0.50161618,3452.2,3451.7,1.193929]
[1719902550077,0.50161618,3452.1,3451.7,1.193929]
[1719902550253,0.50161618,3452.0,3451.7,1.193929]
[1719902550461,2.89662,3452.3,3451.7,1.193929]
[1719902550753,0.50159788,3452.2,3451.7,1.193929]
[1719902550992,0.50159788,3452.1,3451.7,1.193929]
[1719902551158,0.50159788,3452.2,3451.7,1.193929]
[1719902552291,2.89662,3452.3,3451.7,1.193929]
[1719902552483,0.5015991,3452.1,3451.7,1.193929]
[1719902552684,0.5015991,3452.0,3451.7,1.193929]
[1719902552878,0.5015991,3452.2,3451.7,0.822]
[1719902555068,0.5015991,3452.2,3451.8,0.0838812]
[1719902555497,0.5015991,3452.2,3451.7,0.822]
[1719902555498,2.89662,3452.3,3451.7,0.822]
[1719902555842,0.50159778,3452.2,3451.7,0.822]
[1719902556005,2.89662,3452.3,3451.8,0.0838812]
[1719902556323,0.50159911,3452.2,3451.8,0.0838812]
[1719902556516,0.50159911,3452.1,3451.9,0.0838812]
[1719902556715,0.50159911,3452.0,3451.9,0.0838812]
[1719902556891,0.50159911,3452.0,3451.7,0.822]
[1719902557098,2.89662,3452.3,3451.7,1.193916]
[1719902557315,0.50160238,3452.2,3451.8,0.0838812]
[1719902557625,0.50160238,3452.1,3451.7,0.822]
[1719902557831,0.50160238,3452.0,3451.9,0.0838812]
[1719902558031,0.50160238,3452.0,3451.7,0.822]
[1719902558195,0.50160238,3451.9,3451.7,0.822]
[1719902558394,0.50160238,3451.8,3451.7,0.822]
[1719902558795,0.50159892,3451.8,3451.7,0.822]
[1719902559031,0.50159892,3451.8,3451.7,1.193916]
[1719902559831,0.50159892,3451.8,3451.7,0.371916]
[1719902560128,0.50159892,3451.8,3451.7,1.193916]
[1719902560318,0.50159892,3451.8,3451.7,0.822]
[1719902562121,0.50160337,3451.8,3451.7,0.822]
[1719902565405,0.50158321,3451.8,3451.7,0.822]
[1719902565804,0.50158321,3451.8,3451.7,3.2155]
[1719902566418,2.8966,3452.4,3451.7,3.2155]
[1719902566738,0.50157574,3452.3,3452.0,0.822]
[1719902566906,0.50157574,3452.2,3452.0,0.822]
[1719902567107,0.50157574,3452.3,3452.0,0.822]
[1719902568240,0.50157574,3452.3,3452.2,0.822]
[1719902568441,2.89647,3452.5,3452.2,0.822]
[1719902568633,0.50156541,3452.3,3452.2,0.822]
[1719902569006,2.89647,3452.5,3452.2,0.822]
[1719902569217,0.50156528,3452.4,3452.2,0.822]
[1719902569418,0.50156528,3452.3,3452.2,0.822]
[1719902570006,0.50156528,3452.3,3452.2,0.90575602]
[1719902571607,0.50157442,3452.3,3452.2,0.90575602]
[1719902575760,0.50157442,3452.3,3452.2,0.822]
[1719902576949,0.50157442,3452.3,3452.2,0.90572072]
[1719902578046,0.50157442,3452.3,3452.2,1.28598679]
[1719902578257,0.50153177,3452.3,3452.2,1.28598679]
[1719902579336,0.50153177,3452.3,3452.2,4.18268679]
[1719902579849,2.89609,3453.0,3452.3,2.89659]
[1719902580026,0.50149079,3452.9,3452.7,0.822]
[1719902580221,0.50149079,3452.8,3452.7,0.822]
[1719902580421,0.50149079,3452.9,3452.7,0.822]
[1719902580627,0.50149079,3452.9,3452.7,0.90559877]
[1719902580833,2.89609,3453.0,3452.7,0.90559877]
[1719902581033,0.50149259,3452.8,3452.7,0.90559877]
[1719902581434,2.89609,3453.0,3452.7,0.90559877]
[1719902581634,0.50149261,3452.8,3452.7,0.08359877]
[1719902582064,0.50149261,3452.8,3452.6,0.822]
[1719902582220,0.50149261,3452.9,3452.7,0.0835346]
[1719902582422,3.39760261,3452.9,3452.7,0.0835346]
[1719902582623,0.50149261,3452.8,3452.7,0.0835346]
[1719902582822,0.50149261,3452.8,3452.4,0.822]
[1719902583023,0.50149261,3452.8,3452.7,0.0835346]
[1719902583328,0.50149261,3452.8,3452.7,0.08353139]
[1719902583526,0.50149261,3452.8,3452.4,0.822]
[1719902583723,0.50151465,3452.7,3452.5,0.08353139]
[1719902583924,0.50151465,3452.6,3452.5,0.08353139]
[1719902588464,5.89604,3453.0,3452.5,0.08353139]
[1719902588623,0.50147808,3452.6,3452.5,0.90553139]
[1719902589329,0.50147808,3452.6,3452.5,1.6631938]
[1719902589562,5.89604,3453.0,3452.5,1.6631938]
[1719902589865,0.50146435,3452.9,3452.5,0.90553139]
[1719902590063,0.50146435,3452.8,3452.5,0.90553139]
[1719902590266,0.50146435,3452.8,3452.5,2.97997139]
[1719902590466,2.4771,3453.1,3452.7,0.822]
[1719902590765,0.50146843,3453.0,3452.8,0.08335171]
[1719902591067,0.50146843,3452.9,3452.6,5.29596]
[1719902591262,0.50146843,3452.8,3452.7,0.91948625]
[1719902591444,0.50146843,3452.8,3452.7,1.74148625]
[1719902591641,0.50146843,3452.8,3452.7,0.91948625]
[1719902591836,0.50146843,3452.8,3452.5,3.7184]
[1719902592036,0.50146843,3452.7,3452.5,3.7184]
[1719902592348,2.89588,3453.2,3452.5,3.7184]
[1719902592687,0.50146377,3453.1,3452.5,3.7184]
[1719902592838,2.84436377,3453.0,3452.5,4.619858]
[1719902593188,0.50146377,3452.9,3451.2,15.23748]
[1719902593406,3.39758377,3452.9,3452.3,0.822]
[1719902593699,0.50151618,3452.8,3452.3,0.822]
[1719902593874,0.50151618,3452.7,3452.1,2.89673]
[1719902594289,0.50151618,3452.7,3452.4,0.822]
[1719902596671,0.50151107,3452.6,3452.4,0.822]
[1719902596900,0.50151107,3452.5,3452.4,0.822]
[1719902597090,0.50150882,3452.5,3452.4,0.822]
[1719902599986,5.36821,3452.8,3452.4,0.90536774]
[1719902600189,0.50151383,3452.7,3452.4,0.90536774]
[1719902600494,0.50151383,3452.6,3452.4,0.90536774]
[1719902600697,0.50151383,3452.7,3452.4,0.90536774]
[1719902600895,0.50151383,3452.5,3452.4,0.90536774]
[1719902604122,0.50151413,3452.5,3452.4,0.90536774]
[1719902606618,0.50149586,3452.5,3452.4,0.90536774]
[1719902607125,0.50149735,3452.5,3452.4,0.90536774]
[1719902609647,5.36821,3452.8,3452.4,0.90536774]
[1719902609788,0.5014922,3452.7,3452.4,0.90536774]
[1719902609993,0.50149365,3452.6,3452.4,0.90536774]
[1719902610292,0.50149365,3452.5,3452.4,0.90536774]
[1719902611407,0.50149251,3452.5,3452.4,0.90536774]
[1719902612911,0.50149251,3452.5,3452.4,1.82435351]
[1719902613148,3.0,3453.0,3452.4,1.82435351]
[1719902613427,0.50147987,3452.9,3452.6,0.822]
[1719902613625,0.50147987,3453.0,3452.6,0.822]
[1719902613830,0.50147987,3453.0,3452.7,0.08331]
[1719902616410,0.50147798,3452.9,3452.7,0.08331]
[1719902616612,0.50147798,3452.8,3452.7,0.08331]
[1719902619673,2.4804,3453.1,3452.7,0.08331]
[1719902619847,0.5014801,3452.8,3452.7,0.08331]
[1719902620009,0.5014801,3453.0,3452.7,0.08331]
[1719902620210,0.50148003,3452.9,3452.7,0.08331]
[1719902620508,0.50148003,3452.8,3452.7,0.08331]
[1719902622920,0.50145884,3452.8,3452.7,0.08331]
[1719902626062,2.4804,3453.1,3452.7,0.08331]
[1719902626227,0.50146048,3452.8,3452.7,0.08331]
[1719902629348,2.4804,3453.1,3452.7,0.08331]
[1719902629564,0.50146845,3453.0,3452.7,0.08331]
[1719902629749,0.50146845,3452.9,3452.7,0.08331]
[1719902629958,0.50146845,3452.8,3452.7,0.08331]
[1719902631231,0.50146845,3452.8,3452.7,2.94677735]
[1719902631437,0.50146845,3452.8,3452.7,5.84305735]
[1719902631958,4.91404703,3453.7,3452.9,2.8961]
[1719902632255,2.87260464,3453.6,3453.3,0.822]
[1719902632463,0.50140464,3453.5,3453.3,0.822]
[1719902632759,0.50139281,3453.4,3453.3,0.822]
[1719902633185,5.26673,3453.6,3453.3,0.822]
[1719902633332,0.50139234,3453.4,3453.3,0.822]
[1719902635738,3.0,3453.8,3453.3,0.822]
[1719902635975,0.5013762,3453.4,3453.3,0.822]
[1719902636362,0.5013762,3453.7,3453.3,0.822]
[1719902637191,0.5013762,3453.7,3453.1,0.822]
[1719902637383,0.5013762,3453.7,3453.0,0.85240074]
[1719902637552,2.4597,3453.6,3453.0,1.67440074]
[1719902637755,3.3970362,3453.5,3452.9,0.822]
[1719902638090,2.7737762,3453.4,3452.9,0.822]
[1719902638383,0.5013762,3453.3,3452.9,0.822]
[1719902638776,2.2724,3453.2,3452.3,5.19526]
[1719902638982,3.39740576,3453.1,3452.4,2.89647]
[1719902639197,0.50145576,3453.0,3452.7,0.822]
[1719902639403,2.89595,3453.1,3452.9,0.822]
[1719902639700,0.50144038,3453.0,3452.9,0.822]
[1719902641394,2.2724,3453.2,3452.9,0.822]
[1719902641601,0.50143048,3453.1,3452.9,0.822]
[1719902643394,0.50143048,3453.3,3452.9,1.13028]
[1719902643601,0.50143048,3453.2,3452.9,0.822]
[1719902643762,0.50143048,3453.1,3452.9,0.822]
[1719902644105,0.50143048,3453.0,3452.9,0.822]
[1719902644248,0.50141848,3453.0,3452.9,0.822]
[1719902644587,2.8957,3453.4,3452.9,0.822]
[1719902644790,0.50141092,3453.3,3452.9,0.822]
[1719902645117,2.8957,3453.4,3453.0,0.08299883]
[1719902645416,0.50142335,3453.3,3453.0,0.08299883]
[1719902645697,0.50142335,3453.2,3453.0,0.08299883]
[1719902645905,0.50142335,3453.1,3453.0,0.08299883]
[1719902646195,0.50142335,3453.1,3452.9,0.822]
[1719902646365,3.39721335,3453.3,3453.0,0.08299883]
[1719902646567,0.50144232,3453.2,3453.0,0.08299883]
[1719902646892,0.50144232,3453.1,3453.0,0.08299883]
[1719902647798,0.50143457,3453.1,3453.0,0.08299883]
[1719902648188,0.50143552,3453.2,3453.0,0.08299883]
[1719902648503,0.50143552,3453.1,3453.0,0.08299883]
[1719902648681,2.89579,3453.3,3453.0,0.08299883]
[1719902648892,0.50143529,3453.2,3453.0,0.08299883]
[1719902649070,0.50143529,3453.1,3452.9,0.822]
[1719902649271,0.50143529,3453.0,3452.9,0.822]
[1719902650988,2.89579,3453.3,3452.9,0.822]
[1719902651186,0.50143873,3453.0,3452.9,0.822]
[1719902652359,0.50143873,3453.0,3452.9,1.193836]
[1719902654491,0.50143206,3453.0,3452.9,1.193836]
[1719902657666,0.50143205,3453.0,3452.9,1.193836]
[1719902658167,0.50143303,3453.0,3452.9,1.193836]
[1719902660081,0.50143303,3453.0,3452.9,1.27688296]
[1719902660906,0.50141812,3453.0,3452.9,1.27688296]
[1719902664032,2.8957,3453.4,3452.9,1.27688296]
[1719902664228,0.50140762,3453.0,3452.9,0.90504696]
[1719902664879,0.50140762,3453.3,3452.9,0.90504696]
[1719902665288,0.50140762,3453.3,3452.9,0.822]
[1719902665806,0.50140762,3453.4,3453.0,0.08304053]
[1719902666005,0.50140762,3453.2,3453.0,0.08304053]
[1719902666317,0.50140762,3453.1,3452.7,0.822]
[1719902666523,0.50140762,3453.2,3452.7,0.822]
[1719902667194,5.28318,3453.1,3452.2,1.032675]
[1719902667378,2.89616,3452.9,3452.2,1.032675]
[1719902667705,0.50147127,3452.8,3452.2,1.032675]
[1719902667917,2.93617127,3452.7,3452.1,2.89677]
[1719902668221,2.93617127,3452.7,3452.1,3.71877]
[1719902668222,0.50147127,3452.6,3452.1,3.71877]
[1719902669016,0.50147127,3452.6,3452.3,0.822]
[1719902670651,0.50149492,3452.5,3452.3,0.822]
[1719902670828,2.89625,3452.8,3452.3,0.822]
[1719902671029,0.50149473,3452.7,3452.3,0.822]
[1719902671355,0.50149473,3452.6,3452.3,0.822]
[1719902671515,0.50149473,3452.7,3452.3,0.822]
[1719902673762,0.50149535,3452.6,3452.3,0.822]
[1719902674054,0.50149535,3452.5,3452.3,0.822]
[1719902674246,0.50149535,3452.7,3452.3,0.822]
[1719902674952,0.50149535,3452.7,3452.4,0.0831881]
[1719902675674,0.50149535,3452.7,3452.5,0.822]
[1719902675830,2.2994,3452.9,3452.5,0.822]
[1719902675831,0.50149535,3452.8,3452.5,0.822]
[1719902676027,5.19553,3452.9,3452.5,0.822]
[1719902676028,0.50149535,3452.7,3452.6,0.0831881]
[1719902676954,5.19553,3452.9,3452.6,0.0831881]
[1719902677121,0.50148037,3452.8,3452.6,0.0831881]
[1719902677321,0.50148037,3452.7,3452.6,0.0831881]
[1719902680371,0.50147512,3452.7,3452.6,0.75301791]
[1719902680531,1.00294627,3452.7,3452.6,0.75301791]
[1719902681862,1.00295136,3452.7,3452.6,0.75301791]
[1719902683668,1.00294871,3452.7,3452.6,0.75301791]
[1719902684082,1.00295276,3452.7,3452.6,0.75301791]
[1719902684251,1.00295276,3452.7,3452.6,0.0831881]
[1719902686686,0.50147512,3452.7,3452.6,0.0831881]
[1719902686981,1.00294428,3452.7,3452.6,0.0831881]
[1719902690146,1.00294095,3452.7,3452.6,0.0831881]
[1719902693301,0.50147512,3452.7,3452.6,0.0831881]
[1719902693602,1.00294451,3452.7,3452.6,0.0831881]
[1719902696621,0.50147512,3452.7,3452.6,0.0831881]
[1719902696908,1.00293892,3452.7,3452.6,0.0831881]
[1719902697117,0.50147512,3452.7,3452.6,0.0831881]
[1719902697295,1.00293892,3452.7,3452.6,0.0831881]
[1719902698270,0.5014638,3452.7,3452.6,0.0831881]
[1719902698476,0.5014638,3452.7,3452.6,0.75301191]
[1719902699812,0.50145607,3452.7,3452.6,0.75301191]
[1719902700902,0.50145607,3452.7,3452.6,0.0831881]
[1719902701572,0.50145607,3452.7,3452.3,3.71861]
[1719902701899,0.50145607,3452.6,3452.3,3.71861]
[1719902702403,0.50147781,3452.5,3452.3,3.71861]
[1719902702566,0.50147781,3452.4,3452.3,3.71861]
[1719902702899,0.50147781,3452.4,3452.3,4.614246]
[1719902703101,0.50147781,3452.7,3452.3,4.614246]
[1719902703299,2.2891,3452.5,3451.9,2.89688]
[1719902703483,0.50147781,3452.4,3452.2,0.822]
[1719902704887,0.50147781,3452.4,3452.3,0.08322016]
[1719902705276,0.50147781,3452.4,3452.2,0.822]
[1719902705610,2.4334,3452.7,3452.3,0.08322016]
[1719902705772,0.50149359,3452.6,3452.3,0.08322016]
[1719902705974,0.50149359,3452.5,3452.2,0.822]
[1719902706208,0.50149359,3452.6,3452.4,0.90524582]
[1719902706414,0.50149359,3452.6,3452.4,0.822]
[1719902706609,0.50149359,3452.6,3452.5,0.08324582]
[1719902708617,2.89612,3452.9,3452.5,0.08324582]
[1719902708915,0.50147598,3452.6,3452.5,0.08324582]
[1719902709078,0.50148171,3452.6,3452.5,0.08324582]
[1719902712484,0.50148152,3452.6,3452.5,0.08324582]
[1719902713312,0.50148152,3452.6,3452.5,0.4634394]
[1719902713929,0.50148152,3452.6,3452.5,0.90524582]
[1719902715719,0.50146588,3452.6,3452.5,0.90524582]
[1719902716126,0.50146588,3452.6,3452.5,3.80169582]
[1719902718932,2.2638,3453.3,3452.6,2.89633]
[1719902719123,1.63544924,3453.2,3452.9,0.822]
[1719902719293,0.50142407,3453.1,3452.9,0.822]
[1719902719607,2.2638,3453.3,3453.0,0.08320092]
[1719902719801,1.63548427,3453.2,3453.0,0.08320092]
[1719902720000,0.50141951,3453.1,3453.0,0.08320092]
[1719902720203,0.50141951,3453.2,3453.0,0.08320092]
[1719902722139,2.2638,3453.3,3453.0,0.08320092]
[1719902722313,0.50142262,3453.2,3453.0,0.08320092]
[1719902722510,2.2638,3453.3,3453.0,0.08320092]
[1719902722738,1.63549357,3453.2,3453.0,0.08320092]
[1719902722929,0.50142629,3453.1,3453.0,0.08320092]
[1719902723639,0.50142629,3453.1,3453.0,0.75875685]
[1719902723805,0.50142629,3453.1,3453.0,2.97923092]
[1719902725343,0.50138985,3453.1,3453.0,2.97923092]
[1719902725639,0.50138914,3453.1,3453.0,2.97923092]
[1719902728445,3.0,3453.5,3453.0,2.97923092]
[1719902728650,0.50140178,3453.4,3453.1,0.822]
[1719902728869,0.50140178,3453.3,3453.1,1.72482409]
[1719902729054,0.50140178,3453.4,3453.2,0.08315602]
[1719902729246,0.50140276,3453.3,3453.2,0.08315602]
[1719902731720,3.0,3453.5,3453.2,0.08315602]
[1719902731921,0.50141322,3453.3,3453.2,0.08315602]
[1719902733257,3.39719322,3453.3,3453.2,0.08315602]
[1719902733421,2.4813,3453.1,3452.5,0.822]
[1719902733632,0.50141322,3453.0,3452.5,0.822]
[1719902733850,0.50141322,3453.0,3452.7,0.822]
[1719902734431,0.50141322,3453.0,3452.8,0.08315602]
[1719902734637,0.50141322,3453.0,3452.7,0.822]
[1719902734838,2.4813,3453.1,3452.9,0.08315602]
[1719902735040,0.50146006,3453.0,3452.7,0.822]
[1719902735236,0.50146006,3452.9,3452.7,0.822]
[1719902735438,0.50147119,3452.8,3452.4,0.822]
[1719902735639,0.50147119,3452.7,3452.4,1.936867]
[1719902735957,0.50147119,3452.6,3452.4,0.822]
[1719902736259,2.89604,3453.0,3452.4,0.822]
[1719902736434,0.50149381,3452.9,3452.4,0.822]
[1719902736636,0.50149381,3452.8,3452.4,0.822]
[1719902736834,0.50149381,3452.7,3452.4,1.193867]
[1719902737039,2.89604,3453.0,3452.6,0.822]
[1719902737247,0.5014663,3452.9,3452.6,0.822]
[1719902737456,0.5014663,3452.8,3452.6,0.822]
[1719902737624,2.89604,3453.0,3452.6,0.822]
[1719902737825,0.50145528,3452.9,3452.6,0.822]
[1719902738032,2.267,3452.9,3452.6,0.822]
[1719902738244,2.267,3452.9,3452.0,2.4387]
[1719902738245,3.39771725,3452.8,3452.0,2.4387]
[1719902738459,0.50146725,3452.7,3452.0,2.89684]
[1719902738631,0.50146725,3452.7,3452.1,0.822]
[1719902739640,0.50146725,3452.7,3452.3,0.822]
[1719902740040,0.50146725,3452.7,3452.1,0.899125]
[1719902740041,0.50146725,3452.7,3452.5,0.822]
[1719902740246,0.50146725,3452.8,3452.5,0.822]
[1719902740441,3.50146725,3452.8,3452.5,0.822]
[1719902740631,0.50146725,3452.7,3452.5,0.822]
[1719902741262,0.50147213,3452.6,3452.5,0.822]
[1719902741434,0.50147213,3452.6,3452.5,1.443764]
[1719902742050,2.3551,3453.4,3452.5,4.340214]
[1719902742260,0.73692094,3453.3,3453.0,0.822]
[1719902742451,2.3551,3453.4,3453.2,0.822]
[1719902742775,0.50141383,3453.3,3453.2,0.822]
[1719902742930,0.50141383,3453.3,3453.0,0.822]
[1719902743133,2.3551,3453.4,3453.0,0.822]
[1719902743134,0.50141383,3453.2,3453.0,0.822]
[1719902743364,2.3551,3453.4,3453.0,0.822]
[1719902743365,0.50141383,3453.3,3453.0,0.822]
[1719902743566,0.50141383,3453.2,3453.0,0.822]
[1719902743853,0.50141383,3453.1,3453.0,0.822]
[1719902744189,0.50141383,3453.1,3453.0,1.483441]
[1719902744390,5.19407,3453.6,3453.0,1.483441]
[1719902744688,5.19407,3453.6,3452.8,2.89619]
[1719902744689,3.50138354,3453.5,3453.2,0.822]
[1719902744843,0.50138354,3453.4,3453.2,0.822]
[1719902745051,0.50138354,3453.3,3453.2,0.822]
[1719902747697,3.0,3453.5,3453.2,0.822]
[1719902747850,0.50138809,3453.4,3453.2,0.822]
[1719902748054,0.50138809,3453.3,3453.2,0.822]
[1719902748286,0.50139173,3453.3,3453.2,0.822]
[1719902750003,0.50139173,3453.3,3453.2,0.9042052]
[1719902750751,3.0,3453.5,3453.2,0.9042052]
[1719902750946,0.50137819,3453.4,3453.2,0.9042052]
[1719902751194,0.50137819,3453.3,3453.2,0.9042052]
[1719902752264,0.50137819,3453.3,3453.2,1.23812572]
[1719902752474,5.22887,3453.8,3453.2,1.23812572]
[1719902752685,0.50135242,3453.7,3453.5,0.822]
[1719902753003,0.50135242,3453.6,3453.5,0.822]
[1719902756961,2.4144,3454.1,3453.5,0.822]
[1719902757153,2.4144,3454.1,3453.7,0.822]
[1719902757362,0.50129828,3454.0,3453.7,0.822]
[1719902757700,0.50129828,3453.9,3453.7,0.822]
[1719902757991,2.4144,3454.1,3453.7,0.822]
[1719902758201,0.50129491,3454.0,3453.7,0.822]
[1719902758403,5.33797,3454.3,3453.9,0.822]
[1719902758605,0.50128121,3454.2,3453.9,0.822]
[1719902758803,0.50128121,3454.1,3453.9,0.822]
[1719902758965,5.33797,3454.3,3453.9,0.822]
[1719902759164,0.50126901,3454.2,3453.9,0.822]
[1719902759359,2.443,3454.3,3453.9,0.822]
[1719902759712,0.50125476,3454.2,3453.9,0.822]
[1719902759867,2.443,3454.3,3453.9,0.822]
[1719902760075,0.50125618,3454.2,3453.9,0.822]
[1719902760501,2.443,3454.3,3453.9,0.822]
[1719902761708,2.89481,3454.5,3453.9,0.822]
[1719902761922,0.50125714,3454.4,3454.1,0.822]
[1719902762065,2.2511,3454.5,3454.1,0.822]
[1719902762262,0.50124011,3454.4,3453.9,0.893407]
[1719902762638,2.2511,3454.5,3453.9,0.893407]
[1719902762639,0.50124011,3454.3,3453.9,0.893407]
[1719902762821,0.50126815,3454.3,3453.9,0.893407]
[1719902763112,5.14594,3454.5,3453.7,0.822]
[1719902763398,0.50126935,3454.4,3453.7,0.822]
[1719902763570,0.50126935,3454.3,3453.7,0.822]
[1719902764961,0.50126935,3454.3,3453.8,0.08206091]
[1719902765164,0.50126935,3454.3,3453.7,0.822]
[1719902765372,0.50126935,3454.3,3453.8,0.08206091]
[1719902765583,0.50126935,3454.3,3453.7,1.709716]
[1719902765786,2.89486,3454.4,3453.9,0.08206091]
[1719902765987,2.89486,3454.4,3453.7,1.709716]
[1719902765988,3.39620854,3454.3,3453.7,1.709716]
[1719902766170,2.89494,3454.3,3454.0,0.08206091]
[1719902766372,2.89494,3454.3,3453.7,1.709716]
[1719902766571,2.89494,3454.3,3453.8,0.76898251]
[1719902768184,2.89494,3454.3,3453.9,0.822]
[1719902768806,2.89494,3454.3,3454.0,0.08206091]
[1719902772122,0.50126598,3454.2,3454.0,0.08206091]
[1719902772479,2.89494,3454.3,3454.0,0.08206091]
[1719902772678,0.50126537,3454.2,3454.0,0.08206091]
[1719902772889,2.89494,3454.3,3454.0,0.32993076]
[1719902773100,0.50126656,3454.2,3454.0,0.32993076]
[1719902773311,2.89494,3454.3,3454.0,0.32993076]
[1719902773516,0.50126626,3454.2,3454.0,0.32993076]
[1719902773684,2.89494,3454.3,3454.0,0.32993076]
[1719902773889,0.50126628,3454.2,3454.0,0.32993076]
[1719902774138,2.89494,3454.3,3454.0,0.32993076]
[1719902774302,0.50126608,3454.2,3454.0,0.32993076]
[1719902774488,2.89494,3454.3,3454.0,0.32993076]
[1719902774831,0.50126583,3454.2,3454.0,0.32993076]
[1719902775132,2.89494,3454.3,3454.0,0.32993076]
[1719902775333,0.50126627,3454.2,3454.0,0.32993076]
[1719902775643,2.89494,3454.3,3454.0,0.32993076]
[1719902775823,0.50126626,3454.2,3454.0,0.32993076]
[1719902776002,5.78996,3454.3,3454.0,0.08206091]
[1719902776345,0.50126649,3454.2,3454.0,0.08206091]
[1719902776522,2.89494,3454.3,3454.0,0.08206091]
[1719902776835,0.50126585,3454.2,3454.0,0.08206091]
[1719902777043,2.89494,3454.3,3454.0,0.08206091]
[1719902777223,3.39629649,3454.2,3454.0,0.08206091]
[1719902777395,0.50126649,3454.1,3454.0,0.08206091]
[1719902777595,2.89503,3454.2,3454.0,0.08206091]
[1719902777790,0.50126905,3454.1,3453.8,0.822]
[1719902777995,2.89503,3454.2,3454.1,0.08191345]
[1719902778249,2.89503,3454.2,3453.8,0.822]
[1719902778250,3.39629901,3454.2,3453.8,0.822]
[1719902778545,0.50126901,3454.1,3453.8,1.709711]
[1719902778692,2.89503,3454.2,3453.8,1.709711]
[1719902778893,0.5012667,3454.1,3453.8,1.709711]
[1719902779130,2.89503,3454.2,3453.8,1.709711]
[1719902779337,0.50126606,3454.1,3453.8,1.709711]
[1719902779494,2.89503,3454.2,3453.9,0.4605231]
[1719902779699,0.5012673,3454.1,3454.0,0.822]
[1719902780099,0.5012673,3454.1,3454.0,0.90391345]
[1719902780913,2.89494,3454.3,3454.0,0.90391345]
[1719902781099,0.50126584,3454.1,3454.0,0.90391345]
[1719902782440,0.50126584,3454.1,3454.0,3.58742821]
[1719902782746,2.3273,3454.7,3454.0,3.58742821]
[1719902782747,2.89479,3454.5,3454.0,3.58742821]
[1719902782910,0.50123506,3454.4,3454.2,0.822]
[1719902783118,0.50123506,3454.3,3454.2,0.822]
[1719902783329,0.50123506,3454.3,3454.2,1.22679513]
[1719902787446,2.89479,3454.5,3454.2,1.22679513]
[1719902787653,3.39611954,3454.4,3454.2,1.22679513]
[1719902787828,0.50124954,3454.3,3454.2,1.22679513]
[1719902788141,0.50125249,3454.3,3454.2,1.22679513]
[1719902790679,0.5012438,3454.3,3454.2,1.22679513]
[1719902791029,0.50124171,3454.3,3454.2,1.22679513]
[1719902793840,2.89487,3454.4,3454.2,1.22679513]
[1719902794047,0.50124168,3454.3,3454.2,1.22679513]
[1719902795057,0.50124168,3454.3,3454.2,1.30830143]
[1719902796890,0.50124168,3454.3,3454.2,0.9035063]
[1719902797090,2.8948,3454.5,3454.2,0.9035063]
[1719902797294,0.50123124,3454.3,3454.2,0.9035063]
[1719902797469,0.50123124,3454.3,3454.2,0.822]
[1719902797664,0.50123124,3454.3,3454.2,0.08145183]
[1719902797999,0.50123124,3454.3,3454.0,0.822]
[1719902798204,0.50123124,3454.2,3454.1,0.08145183]
[1719902798393,0.50123124,3454.3,3454.1,0.08145183]
[1719902800423,0.50124499,3454.2,3454.1,0.90345183]
[1719902800828,0.50124424,3454.2,3454.1,0.90345183]
[1719902801236,0.50124424,3454.2,3454.1,0.08145183]
[1719902801535,3.39626424,3454.2,3454.1,0.08145183]
[1719902801713,3.39626424,3454.2,3454.0,0.822]
[1719902801910,2.89502,3454.2,3454.1,0.08145183]
[1719902802130,3.39629764,3454.2,3454.1,0.08145183]
[1719902803410,5.78978,3454.4,3454.1,0.08145183]
[1719902803613,3.39627776,3454.3,3454.1,0.08145183]
[1719902803819,0.50126712,3454.2,3454.1,0.08145183]
[1719902804523,3.39628712,3454.2,3454.1,0.08145183]
[1719902806854,3.39629441,3454.2,3454.1,0.08145183]
[1719902810158,3.39629036,3454.2,3454.1,0.08145183]
[1719902810365,0.50127036,3454.2,3454.1,0.08145183]
[1719902810682,0.50127036,3454.2,3454.1,0.40664701]
[1719902813384,0.50123952,3454.2,3454.1,0.40664701]
[1719902813799,5.27392,3454.6,3454.1,0.40664701]
[1719902813958,0.50123955,3454.2,3454.1,0.40664701]
[1719902814304,5.27392,3454.6,3454.2,0.822]
[1719902814467,0.50123807,3454.5,3454.2,0.822]
[1719902814654,0.50123807,3454.4,3454.3,0.0815031]
[1719902815411,0.50123807,3454.4,3454.2,0.772]
[1719902815604,5.27392,3454.6,3454.3,0.0815031]
[1719902815809,0.50123761,3454.5,3454.3,0.0815031]
[1719902816004,0.50123761,3454.4,3454.2,0.772]
[1719902816316,0.50123761,3454.3,3454.2,1.138727]
[1719902816479,2.89472,3454.6,3454.2,0.772]
[1719902816686,0.50123044,3454.3,3454.2,0.772]
[1719902818021,0.50123044,3454.3,3454.2,0.722]
[1719902819901,0.50123,3454.3,3454.2,0.722]
[1719902822339,2.89472,3454.6,3454.2,0.722]
[1719902822497,0.50123159,3454.3,3454.2,0.722]
[1719902822822,0.50123159,3454.3,3454.2,1.083727]
[1719902824743,0.50123159,3454.3,3454.2,0.361727]
[1719902825051,0.50123159,3454.3,3454.2,0.4432301]
[1719902825574,0.50123854,3454.3,3454.2,0.4432301]
[1719902825795,0.50123854,3454.4,3454.2,0.0815031]
[1719902826066,0.50123834,3454.3,3454.2,0.0815031]
[1719902827472,0.50123834,3454.3,3454.1,0.822]
[1719902827682,2.89477,3454.5,3454.2,0.08145503]
[1719902827966,0.50125216,3454.4,3454.2,0.08145503]
[1719902828271,2.287,3454.7,3454.2,0.08145503]
[1719902828272,0.50125216,3454.3,3454.2,0.08145503]
[1719902828640,0.50124815,3454.3,3454.2,0.08145503]
[1719902828839,2.287,3454.7,3454.2,0.08145503]
[1719902829041,0.50124832,3454.6,3454.2,0.08145503]
[1719902829269,3.39608832,3454.5,3454.2,0.08145503]
[1719902829563,0.50124832,3454.4,3454.2,0.08145503]
[1719902829862,3.39612832,3454.4,3454.2,0.08145503]
[1719902830047,0.50124832,3454.3,3454.2,0.08145503]
[1719902830763,0.50124832,3454.3,3454.1,0.822]